fUSD/lending_fUSD_20260412
["ID","MTS","AMOUNT","RATE_DAILY","PERIOD"]
[420308070,1775947935683,-500.0,0.00032876,2]
[420308071,1775947935693,-459.63732467,0.00032876,2]
[420308072,1775947935708,-500.0,0.00032876,2]
[420308073,1775947935729,-500.0,0.00032876,2]
[420308074,1775947935738,-500.0,0.00032876,2]
[420308075,1775947935769,-500.0,0.00032876,2]
[420308076,1775947935793,-170.68996337,0.00032876,2]
[420308077,1775947935806,-500.0,0.00032876,2]
[420308078,1775947935817,-386.88479684,0.00032876,2]
[420308079,1775947935831,-500.0,0.00032876,2]
[420308080,1775947935844,-281.26216559,0.00032876,2]
[420308081,1775947935856,-447.27051944,0.00032876,2]
[420308082,1775947935867,-480.81813954,0.00032876,2]
[420308083,1775947935887,-288.05571388,0.00032876,2]
[420308084,1775947935898,-153.87,0.00032877,2]
[420308085,1775947935909,-153.68,0.00032877,2]
[420308086,1775947935923,-153.68,0.00032877,2]
[420308087,1775947935940,-153.68,0.00032877,2]
[420308088,1775947935950,-153.68,0.00032877,2]
[420308089,1775947935966,-153.68,0.00032877,2]
[420308090,1775947935984,-153.68,0.00032877,2]
[420308091,1775947935998,-153.68,0.00032877,2]
[420308092,1775947936011,-153.68,0.00032877,2]
[420308093,1775947936035,-153.68,0.00032877,2]
[420308094,1775947936051,-153.68,0.00032877,2]
[420308095,1775947936076,-153.68,0.00032877,2]
[420308096,1775947936092,-153.68,0.00032877,2]
[420308097,1775947936108,-153.68,0.00032877,2]
[420308098,1775947936130,-153.68,0.00032877,2]
[420308099,1775947936142,-153.68,0.00032877,2]
[420308100,1775947936156,-153.68,0.00032877,2]
[420308101,1775947936166,-153.68,0.00032877,2]
[420308102,1775947936181,-153.68,0.00032877,2]
[420308103,1775947936193,-153.68,0.00032877,2]
[420308104,1775947936203,-153.68,0.00032877,2]
[420308105,1775947936217,-153.68,0.00032877,2]
[420308106,1775947936227,-153.68,0.00032877,2]
[420308107,1775947936240,-153.68,0.00032877,2]
[420308108,1775947936253,-153.68,0.00032877,2]
[420308109,1775947936265,-153.68,0.00032877,2]
[420308110,1775947936278,-153.68,0.00032877,2]
[420308111,1775947936291,-153.68,0.00032877,2]
[420308112,1775947936304,-153.68,0.00032877,2]
[420308113,1775947936320,-153.68,0.00032877,2]
[420308114,1775947936331,-153.68,0.00032877,2]
[420308115,1775947936349,-153.68,0.00032877,2]
[420308116,1775947936367,-153.68,0.00032877,2]
[420308117,1775947936380,-153.68,0.00032877,2]
[420308118,1775947936399,-153.68,0.00032877,2]
[420308119,1775947936410,-153.68,0.00032877,2]
[420308120,1775947936423,-153.68,0.00032877,2]
[420308121,1775947936443,-153.68,0.00032877,2]
[420308122,1775947936454,-153.68,0.00032877,2]
[420308123,1775947936470,-2000.0,0.00032877,2]
[420308124,1775947936490,-348.3,0.00032877,2]
[420308125,1775947936502,-317.5,0.00032877,2]
[420308126,1775947936523,-1414.475108,0.00032877,7]
[420308127,1775947936539,-1414.475108,0.00032877,7]
[420308128,1775947936549,-1414.475108,0.00032877,7]
[420308129,1775947936567,-1414.475108,0.00032877,7]
[420308130,1775947936581,-1414.475108,0.00032877,7]
[420308131,1775947936595,-1414.475108,0.00032877,7]
[420308132,1775947936614,-1414.475108,0.00032877,7]
[420308133,1775947936633,-1414.475108,0.00032877,7]
[420308134,1775947936644,-1414.475108,0.00032877,7]
[420308135,1775947936657,-1414.475108,0.00032877,7]
[420308136,1775947936678,-1414.475108,0.00032877,7]
[420308137,1775947936688,-1414.475108,0.00032877,7]
[420308138,1775947936707,-1414.475108,0.00032877,7]
[420308139,1775947936720,-1414.475108,0.00032877,7]
[420308140,1775947936732,-1414.475108,0.00032877,7]
[420308141,1775947936750,-1414.475108,0.00032877,7]
[420308142,1775947936770,-1414.475108,0.00032877,7]
[420308143,1775947936784,-1414.475108,0.00032877,7]
[420308144,1775947936800,-1414.475108,0.00032877,7]
[420308145,1775947936814,-1414.475111,0.00032877,7]
[420308146,1775947936825,-150.0,0.00032877,30]
[420308147,1775947936840,-150.0,0.00032877,30]
[420308148,1775947936855,-150.0,0.00032877,30]
[420308149,1775947936869,-150.0,0.00032877,30]
[420308150,1775947936885,-150.0,0.00032877,30]
[420308151,1775947936903,-150.0,0.00032877,30]
[420308152,1775947936914,-150.0,0.00032877,30]
[420308153,1775947936931,-150.0,0.00032877,30]
[420308154,1775947936953,-150.0,0.00032877,30]
[420308155,1775947936967,-150.0,0.00032877,30]
[420308156,1775947936977,-150.0,0.00032877,30]
[420308157,1775947937002,-150.0,0.00032877,30]
[420308158,1775947937013,-150.0,0.00032877,30]
[420308159,1775947937028,-150.0,0.00032877,30]
[420308160,1775947937040,-150.0,0.00032877,30]
[420308161,1775947937052,-150.0,0.00032877,30]
[420308162,1775947937068,-150.0,0.00032877,30]
[420308163,1775947937081,-150.0,0.00032877,30]
[420308164,1775947937095,-150.0,0.00032877,30]
[420308165,1775947937106,-249.0,0.00032877,30]
[420308166,1775947937123,-500.0,0.00032877,2]
[420308167,1775947937140,-500.0,0.00032877,2]
[420308168,1775947937150,-395.61830498,0.00032877,2]
[420308169,1775947937167,-500.0,0.00032877,2]
[420308170,1775947937184,-500.0,0.00032877,2]
[420308171,1775947937195,-500.0,0.00032877,5]
[420308172,1775947937206,-500.0,0.00032877,2]
[420308173,1775947937226,-500.0,0.00032877,2]
[420308174,1775947937238,-2000.0,0.00032877,7]
[420308175,1775947937249,-1517.86,0.00032878,120]
[420308176,1775947937269,-749.0,0.00032892,30]
[420308177,1775947937279,-1768.0,0.00032892,30]
[420308178,1775947937291,-1035.0,0.00032892,30]
[420308179,1775947937313,-1031.0,0.00032892,30]
[420308180,1775947937326,-742.0,0.00032895,30]
[420308181,1775947937340,-153.0,0.00032895,30]
[420308182,1775947937359,-865.0,0.00032895,30]
[420308183,1775947937371,-1932.0,0.00032895,30]
[420308184,1775947937390,-3789.0,0.00032895,30]
[420308185,1775947937400,-522.0,0.00032895,30]
[420308186,1775947937416,-776.1234,0.000329,20]
[420308187,1775947937437,-237.68,0.000329,120]
[420308188,1775947937454,-3774.0,0.00032908,2]
[420308189,1775947937476,-1517.86,0.00032939,120]
[420308190,1775947937489,-357.46487684,0.00032986,2]
[420308191,1775947937513,-151.0,0.00033,5]
[420308192,1775947937523,-151.0,0.00033,2]
[420308193,1775947937548,-1000.53392743,0.00033,2]
[420308194,1775947937559,-51850.21870962,0.00033,2]
[420308195,1775947937569,-1200.0,0.00033,12]
[420308196,1775947937597,-151.0,0.00033,5]
[420308197,1775947937608,-804.96365984,0.00033,2]
[420308198,1775947937626,-174.60930682,0.00033,60]
[420308199,1775947937642,-301.44602068,0.00033,120]
[420308200,1775947937654,-474.25483364,0.00033,30]
[420308201,1775947937679,-2556.15,0.00033,2]
[420308202,1775947937690,-417.424735,0.00033,14]
[420308203,1775947937703,-1048.0,0.00033,7]
[420308204,1775947937728,-330.0,0.00033019,2]
[420308205,1775947937747,-222.98565,0.00033136,5]
[420308206,1775947937778,-2000.0,0.00033136,5]
[420308207,1775947937791,-2000.0,0.00033151,7]
[420308208,1775947937807,-230.38137135,0.00033261,2]
[420308209,1775947937829,-181.16,0.0003328,14]
[420308210,1775947937842,-353449.09,0.000333,7]
[420308211,1775947937875,-152.0,0.00033315,8]
[420308212,1775947937886,-2000.0,0.00033425,7]
[420308213,1775947937914,-481.46,0.00033425,120]
[420308214,1775947937925,-500.0,0.00033425,120]
[420308215,1775947937939,-452.13,0.00033476,30]
[420308216,1775947937961,-1224.44519198,0.000335,2]
[420308217,1775947937972,-1885.63,0.000336,30]
[420308218,1775947937991,-2064.61,0.000336,30]
[420308219,1775947938004,-1381.181,0.000336,2]
[420308220,1775947938015,-442.59584473,0.00033638,2]
[420308221,1775947938026,-686.63,0.00033644,30]
[420308222,1775947938043,-153.5875809,0.00033683,2]
[420308223,1775947938057,-1200.0,0.00033684,21]
[420308224,1775947938070,-2400.0,0.00033684,21]
[420308225,1775947938083,-2000.0,0.00033699,7]
[420308226,1775947938099,-2897.87,0.000337,120]
[420308227,1775947938115,-15959.482,0.000338,10]
[420308228,1775947938131,-150.0,0.00033834,2]
[420308229,1775947938152,-3009.98,0.00033887,120]
[420308230,1775947938165,-749.0,0.00033892,30]
[420308231,1775947938190,-1768.0,0.00033892,30]
[420308232,1775947938201,-1035.0,0.00033892,30]
[420308233,1775947938223,-1031.0,0.00033892,30]
[420308234,1775947938235,-742.0,0.00033895,30]
[420308235,1775947938247,-153.0,0.00033895,30]
[420308236,1775947938271,-865.0,0.00033895,30]
[420308237,1775947938281,-1932.0,0.00033895,30]
[420308238,1775947938309,-3789.0,0.00033895,30]
[420308239,1775947938322,-522.0,0.00033895,30]
[420308240,1775947938349,-207.03,0.00033895,60]
[420308241,1775947938362,-2000.0,0.00033973,7]
[420308242,1775947938375,-1200.0,0.00034,12]
[420308243,1775947938398,-1000.0,0.00034,120]
[420308244,1775947938408,-4000.0,0.00034,120]
[420308245,1775947938426,-2947.0,0.00034,3]
[420308246,1775947938442,-248.70361258,0.00034022,7]
[420308247,1775947938452,-81847.53928213,0.0003406,3]
[420308248,1775947938466,-825.0,0.00034067,90]
[420308249,1775947938482,-150.0,0.0003419,2]
[420308250,1775947938492,-600.0,0.00034212,120]
[420308251,1775947938507,-150.0,0.00034247,10]
[420308252,1775947938517,-193.0,0.00034247,120]
[420308253,1775947938527,-2000.0,0.00034247,7]
[420308254,1775947938538,-150.0,0.00034336,7]
[420308255,1775947938551,-150.0,0.00034337,2]
[420308256,1775947938562,-269.66286203,0.00034356,120]
[420308257,1775947938573,-150.0,0.00034356,120]
[420308258,1775947938583,-3130.97,0.0003438,30]
[420308259,1775947938595,-375.0,0.00034381,60]
[420308260,1775947938606,-250.0,0.00034381,60]
[420308261,1775947938617,-258.9692697,0.00034381,60]
[420308262,1775947938628,-282.2299487,0.00034381,60]
[420308263,1775947938641,-375.0,0.00034381,60]
[420308264,1775947938655,-287.7754924,0.00034381,60]
[420308265,1775947938666,-375.0,0.00034381,60]
[420308266,1775947938680,-375.0,0.00034381,60]
[420308267,1775947938693,-659.4233227,0.00034381,60]
[420308268,1775947938704,-162.3731548,0.00034381,60]
[420308269,1775947938714,-174.6596681,0.00034381,60]
[420308270,1775947938731,-174.7114624,0.00034381,60]
[420308271,1775947938745,-424.0960337,0.00034381,60]
[420308272,1775947938756,-441.9270879,0.00034381,60]
[420308273,1775947938774,-452.4582495,0.00034381,60]
[420308274,1775947938791,-169.9628349,0.00034381,60]
[420308275,1775947938802,-211.523073,0.00034381,60]
[420308276,1775947938817,-375.0,0.00034381,60]
[420308277,1775947938837,-224.9833007,0.00034381,60]
[420308278,1775947938847,-375.0,0.00034381,60]
[420308279,1775947938863,-375.0,0.00034381,60]
[420308280,1775947938881,-500.0,0.00034381,60]
[420308281,1775947938891,-280.7583772,0.00034381,60]
[420308282,1775947938906,-500.0,0.00034381,60]
[420308283,1775947938925,-500.0,0.00034381,60]
[420308284,1775947938937,-188.3128867,0.00034381,60]
[420308285,1775947938953,-645.9094289,0.00034381,60]
[420308286,1775947938967,-405.0,0.00034381,60]
[420308287,1775947938982,-188.8145075,0.00034381,60]
[420308288,1775947938996,-170.5912025,0.00034381,60]
[420308289,1775947939015,-500.0,0.00034381,60]
[420308290,1775947939031,-500.0,0.00034381,60]
[420308291,1775947939043,-500.0,0.00034381,60]
[420308292,1775947939064,-769.7841907,0.00034381,60]
[420308293,1775947939079,-700.0,0.00034381,60]
[420308294,1775947939096,-700.0,0.00034381,60]
[420308295,1775947939114,-700.0,0.00034381,60]
[420308296,1775947939127,-700.0,0.00034381,60]
[420308297,1775947939149,-700.0,0.00034381,60]
[420308298,1775947939166,-700.0,0.00034381,60]
[420308299,1775947939487,-700.0,0.00034381,60]
[420308300,1775947939500,-700.0,0.00034381,60]
[420308301,1775947939511,-700.0,0.00034381,60]
[420308302,1775947939533,-700.0,0.00034381,60]
[420308303,1775947939542,-700.0,0.00034381,60]
[420308304,1775947939554,-700.0,0.00034381,60]
[420308305,1775947939573,-700.0,0.00034381,60]
[420308306,1775947939582,-700.0,0.00034381,60]
[420308307,1775947939594,-700.0,0.00034381,60]
[420308308,1775947939608,-500.0,0.00034381,60]
[420308309,1775947939618,-700.0,0.00034381,60]
[420308310,1775947939627,-500.0,0.00034381,60]
[420308311,1775947939646,-500.0,0.00034381,60]
[420308312,1775947939655,-700.0,0.00034381,60]
[420308313,1775947939667,-500.0,0.00034381,60]
[420308314,1775947939687,-500.0,0.00034381,60]
[420308315,1775947939699,-700.0,0.00034381,60]
[420308316,1775947939710,-500.0,0.00034381,60]
[420308317,1775947939723,-700.0,0.00034381,60]
[420308318,1775947939738,-500.0,0.00034381,60]
[420308319,1775947939751,-700.0,0.00034381,60]
[420308320,1775947939764,-500.0,0.00034381,60]
[420308321,1775947939777,-700.0,0.00034381,60]
[420308322,1775947939787,-500.0,0.00034381,60]
[420308323,1775947939798,-700.0,0.00034381,60]
[420308324,1775947939811,-900.0,0.00034381,60]
[420308325,1775947939828,-500.0,0.00034381,60]
[420308326,1775947939840,-700.0,0.00034381,60]
[420308327,1775947939850,-800.0,0.00034381,60]
[420308328,1775947939870,-500.0,0.00034381,60]
[420308329,1775947939882,-900.0,0.00034381,60]
[420308330,1775947939892,-700.0,0.00034381,60]
[420308331,1775947939903,-800.0,0.00034381,60]
[420308332,1775947939929,-900.0,0.00034381,60]
[420308333,1775947939940,-500.0,0.00034381,60]
[420308334,1775947939963,-500.0,0.00034381,60]
[420308335,1775947939977,-700.0,0.00034381,60]
[420308336,1775947940004,-500.0,0.00034381,60]
[420308337,1775947940020,-800.0,0.00034381,60]
[420308338,1775947940040,-500.0,0.00034381,60]
[420308339,1775947940050,-500.0,0.00034381,60]
[420308340,1775947940065,-900.0,0.00034381,60]
[420308341,1775947940085,-1251.0354552,0.00034381,60]
[420308342,1775947940103,-500.0,0.00034381,60]
[420308343,1775947940114,-800.0,0.00034381,60]
[420308344,1775947940134,-500.0,0.00034381,60]
[420308345,1775947940151,-500.0,0.00034381,60]
[420308346,1775947940166,-900.0,0.00034381,60]
[420308347,1775947940184,-500.0,0.00034381,60]
[420308348,1775947940194,-800.0,0.00034381,60]
[420308349,1775947940208,-500.0,0.00034381,60]
[420308350,1775947940226,-900.0,0.00034381,60]
[420308351,1775947940236,-500.0,0.00034381,60]
[420308352,1775947940246,-500.0,0.00034381,60]
[420308353,1775947940267,-800.0,0.00034381,60]
[420308354,1775947940277,-689.8367069,0.00034381,60]
[420308355,1775947940287,-900.0,0.00034381,60]
[420308356,1775947940306,-500.0,0.00034381,60]
[420308357,1775947940317,-500.0,0.00034381,60]
[420308358,1775947940327,-900.0,0.00034381,60]
[420308359,1775947940337,-678.5570051,0.00034381,60]
[420308360,1775947940348,-900.0,0.00034381,60]
[420308361,1775947940364,-500.0,0.00034381,60]
[420308362,1775947940374,-900.0,0.00034381,60]
[420308363,1775947940383,-500.0,0.00034381,60]
[420308364,1775947940404,-900.0,0.00034381,60]
[420308365,1775947940413,-500.0,0.00034381,60]
[420308366,1775947940423,-800.0,0.00034381,60]
[420308367,1775947940432,-900.0,0.00034381,60]
[420308368,1775947940451,-500.0,0.00034381,60]
[420308369,1775947940460,-800.0,0.00034381,60]
[420308370,1775947940471,-500.0,0.00034381,60]
[420308371,1775947940483,-900.0,0.00034381,60]
[420308372,1775947940495,-800.0,0.00034381,60]
[420308373,1775947940505,-500.0,0.00034381,60]
[420308374,1775947940517,-900.0,0.00034381,60]
[420308375,1775947940527,-800.0,0.00034381,60]
[420308376,1775947940539,-500.0,0.00034381,60]
[420308377,1775947940554,-800.0,0.00034381,60]
[420308378,1775947940569,-500.0,0.00034381,60]
[420308379,1775947940582,-900.0,0.00034381,60]
[420308380,1775947940591,-800.0,0.00034381,60]
[420308381,1775947940625,-500.0,0.00034381,60]
[420308382,1775947940634,-900.0,0.00034381,60]
[420308383,1775947940644,-800.0,0.00034381,60]
[420308384,1775947940665,-500.0,0.00034381,60]
[420308385,1775947940677,-900.0,0.00034381,60]
[420308386,1775947940688,-800.0,0.00034381,60]
[420308387,1775947940710,-500.0,0.00034381,60]
[420308388,1775947940720,-900.0,0.00034381,60]
[420308389,1775947940731,-800.0,0.00034381,60]
[420308390,1775947940757,-872.3209498,0.00034381,60]
[420308391,1775947940766,-900.0,0.00034381,60]
[420308392,1775947940781,-800.0,0.00034381,60]
[420308393,1775947940800,-900.0,0.00034381,60]
[420308394,1775947940809,-800.0,0.00034381,60]
[420308395,1775947940819,-900.0,0.00034381,60]
[420308396,1775947940834,-800.0,0.00034381,60]
[420308397,1775947940848,-900.0,0.00034381,60]
[420308398,1775947940857,-800.0,0.00034381,60]
[420308399,1775947940870,-900.0,0.00034381,60]
[420308400,1775947940885,-800.0,0.00034381,60]
[420308401,1775947940894,-900.0,0.00034381,60]
[420308402,1775947940904,-800.0,0.00034381,60]
[420308403,1775947940913,-900.0,0.00034381,60]
[420308404,1775947940928,-800.0,0.00034381,60]
[420308405,1775947940938,-800.0,0.00034381,60]
[420308406,1775947940947,-900.0,0.00034381,60]
[420308407,1775947940956,-800.0,0.00034381,60]
[420308408,1775947940969,-1089.3828493,0.00034381,60]
[420308409,1775947940979,-800.0,0.00034381,60]
[420308410,1775947940990,-1354.8966479,0.00034381,60]
[420308411,1775947941001,-1600.0,0.00034381,60]
[420308412,1775947941013,-1600.0,0.00034381,60]
[420308413,1775947941025,-1600.0,0.00034381,60]
[420308414,1775947941038,-1600.0,0.00034381,60]
[420308415,1775947941048,-1600.0,0.00034381,60]
[420308416,1775947941063,-1600.0,0.00034381,60]
[420308417,1775947941073,-1600.0,0.00034381,60]
[420308418,1775947941087,-1600.0,0.00034381,60]
[420308419,1775947941099,-1600.0,0.00034381,60]
[420308420,1775947941111,-1600.0,0.00034381,60]
[420308421,1775947941130,-1600.0,0.00034381,60]
[420308422,1775947941146,-1600.0,0.00034381,60]
[420308423,1775947941164,-1600.0,0.00034381,60]
[420308424,1775947941179,-1600.0,0.00034381,60]
[420308425,1775947941195,-1600.0,0.00034381,60]
[420308426,1775947941208,-1600.0,0.00034381,60]
[420308427,1775947941235,-1600.0,0.00034381,60]
[420308428,1775947941246,-1600.0,0.00034381,60]
[420308429,1775947941291,-1600.0,0.00034381,60]
[420308430,1775947941306,-1600.0,0.00034381,60]
[420308431,1775947941335,-1600.0,0.00034381,60]
[420308432,1775947941344,-1600.0,0.00034381,60]
[420308433,1775947941355,-1600.0,0.00034381,60]
[420308434,1775947941379,-1600.0,0.00034381,60]
[420308435,1775947941388,-1600.0,0.00034381,60]
[420308436,1775947941399,-1600.0,0.00034381,60]
[420308437,1775947941426,-1600.0,0.00034381,60]
[420308438,1775947941436,-2925.5310088,0.00034381,60]
[420308439,1775947941459,-700.0,0.00034381,60]
[420308440,1775947941471,-700.0,0.00034381,60]
[420308441,1775947941480,-700.0,0.00034381,60]
[420308442,1775947941507,-700.0,0.00034381,60]
[420308443,1775947941516,-700.0,0.00034381,60]
[420308444,1775947941526,-700.0,0.00034381,60]
[420308445,1775947941544,-700.0,0.00034381,60]
[420308446,1775947941555,-700.0,0.00034381,60]
[420308447,1775947941565,-700.0,0.00034381,60]
[420308448,1775947941574,-700.0,0.00034381,60]
[420308449,1775947941598,-700.0,0.00034381,60]
[420308450,1775947941608,-700.0,0.00034381,60]
[420308451,1775947941617,-700.0,0.00034381,60]
[420308452,1775947941635,-700.0,0.00034381,60]
[420308453,1775947941648,-700.0,0.00034381,60]
[420308454,1775947941657,-700.0,0.00034381,60]
[420308455,1775947941671,-700.0,0.00034381,60]
[420308456,1775947941680,-700.0,0.00034381,60]
[420308457,1775947941693,-700.0,0.00034381,60]
[420308458,1775947941703,-700.0,0.00034381,60]
[420308459,1775947941713,-700.0,0.00034381,60]
[420308460,1775947941722,-700.0,0.00034381,60]
[420308461,1775947941731,-700.0,0.00034381,60]
[420308462,1775947941741,-700.0,0.00034381,60]
[420308463,1775947941750,-700.0,0.00034381,60]
[420308464,1775947941760,-700.0,0.00034381,60]
[420308465,1775947941769,-700.0,0.00034381,60]
[420308466,1775947941779,-700.0,0.00034381,60]
[420308467,1775947941788,-762.9211422,0.00034381,60]
[420308468,1775947941802,-1100.0,0.00034381,60]
[420308469,1775947941811,-1100.0,0.00034381,60]
[420308470,1775947941821,-1100.0,0.00034381,60]
[420308471,1775947941831,-1100.0,0.00034381,60]
[420308472,1775947941847,-1100.0,0.00034381,60]
[420308473,1775947941858,-1100.0,0.00034381,60]
[420308474,1775947941871,-1100.0,0.00034381,60]
[420308475,1775947941892,-1100.0,0.00034381,60]
[420308476,1775947941904,-1100.0,0.00034381,60]
[420308477,1775947941923,-1100.0,0.00034381,60]
[420308478,1775947941945,-1100.0,0.00034381,60]
[420308479,1775947941966,-1100.0,0.00034381,60]
[420308480,1775947941998,-1100.0,0.00034381,60]
[420308481,1775947942019,-1100.0,0.00034381,60]
[420308482,1775947942039,-1100.0,0.00034381,60]
[420308483,1775947942056,-1100.0,0.00034381,60]
[420308484,1775947942092,-1100.0,0.00034381,60]
[420308485,1775947942119,-1100.0,0.00034381,60]
[420308486,1775947942146,-1100.0,0.00034381,60]
[420308487,1775947942188,-1100.0,0.00034381,60]
[420308488,1775947942219,-1100.0,0.00034381,60]
[420308489,1775947942232,-1100.0,0.00034381,60]
[420308490,1775947942243,-1100.0,0.00034381,60]
[420308491,1775947942259,-1100.0,0.00034381,60]
[420308492,1775947942273,-1100.0,0.00034381,60]
[420308493,1775947942284,-1100.0,0.00034381,60]
[420308494,1775947942300,-1100.0,0.00034381,60]
[420308495,1775947942314,-1100.0,0.00034381,60]
[420308496,1775947942325,-1448.4147681,0.00034381,60]
[420308497,1775947942339,-500.0,0.00034381,60]
[420308498,1775947942360,-500.0,0.00034381,60]
[420308499,1775947942371,-500.0,0.00034381,60]
[420308500,1775947942392,-500.0,0.00034381,60]
[420308501,1775947942407,-500.0,0.00034381,60]
[420308502,1775947942417,-500.0,0.00034381,60]
[420308503,1775947942435,-500.0,0.00034381,60]
[420308504,1775947942463,-500.0,0.00034381,60]
[420308505,1775947942490,-992.7935893,0.00034381,60]
[420308506,1775947942510,-500.8948607,0.00034381,60]
[420308507,1775947942534,-335.0,0.00034381,60]
[420308508,1775947942565,-326.9604319,0.00034381,60]
[420308509,1775947942597,-597.17872983,0.00034401,2]
[420308510,1775947942616,-840.89,0.00034401,30]
[420308511,1775947942635,-481.46,0.00034438,120]
[420308512,1775947942661,-500.0,0.00034438,120]
[420308513,1775947942691,-364.08195717,0.00034444,30]
[420308514,1775947942706,-433.0,0.0003449,10]
[420308515,1775947942731,-1749.8445771,0.0003449,2]
[420308516,1775947942755,-1885.63,0.000345,30]
[420308517,1775947942777,-2064.61,0.000345,30]
[420308518,1775947942793,-224.44391282,0.000345,120]
[420308519,1775947942822,-724.46,0.000345,90]
[420308520,1775947942839,-2000.0,0.00034521,7]
[420308521,1775947942870,-915.623681,0.00034636,5]
[420308522,1775947942892,-756.03,0.00034712,30]
[420308523,1775947942916,-356.41,0.00034712,30]
[420308524,1775947942944,-409.28,0.00034712,30]
[420308525,1775947942962,-150.0,0.00034712,30]
[420308526,1775947942986,-374.18196993,0.00034757,2]
[420308527,1775947943008,-1500.0,0.00034795,2]
[420308528,1775947943033,-2000.0,0.00034795,7]
[420308529,1775947943050,-150.0,0.00034834,2]
[420308530,1775947943072,-450.0,0.00034854,2]
[420308531,1775947943094,-202.0,0.0003488,30]
[420308532,1775947943111,-749.0,0.00034892,30]
[420308533,1775947943132,-1768.0,0.00034892,30]
[420308534,1775947943154,-1035.0,0.00034892,30]
[420308535,1775947943177,-1031.0,0.00034892,30]
[420308536,1775947943194,-742.0,0.00034895,30]
[420308537,1775947943213,-153.0,0.00034895,30]
[420308538,1775947943235,-865.0,0.00034895,30]
[420308539,1775947943254,-1932.0,0.00034895,30]
[420308540,1775947943275,-3789.0,0.00034895,30]
[420308541,1775947943293,-522.0,0.00034895,30]
[420308542,1775947943314,-729.77943779,0.000349,120]
[420308543,1775947943338,-2000.0,0.000349,2]
[420308544,1775947943360,-222.38,0.000349,120]
[420308545,1775947943385,-1573.8591,0.000349,2]
[420308546,1775947943409,-213.88,0.00034932,30]
[420308547,1775947943431,-452.14758488,0.00034969,30]
[420308548,1775947943449,-2106.0,0.00035,10]
[420308549,1775947943472,-340000.0,0.00035,4]
[420308550,1775947943494,-44466.17,0.00035,15]
[420308551,1775947943521,-1000.0,0.00035,2]
[420308552,1775947943548,-1938.02231644,0.00035,2]
[420308553,1775947943565,-2561.3313719,0.00035,3]
[420308554,1775947943585,-2060.0,0.00035,12]
[420308555,1775947943612,-1000.0,0.00035,12]
[420308556,1775947943628,-5000.0,0.00035,10]
[420308557,1775947943656,-1007.46,0.00035,12]
[420308558,1775947943676,-353449.09,0.00035,7]
[420308559,1775947943696,-150.0,0.00035,2]
[420308560,1775947943714,-179.154,0.00035,2]
[420308561,1775947943736,-150.0,0.00035,60]
[420308562,1775947943752,-2503.47879384,0.00035,120]
[420308563,1775947943772,-1000.0,0.00035,2]
[420308564,1775947943789,-2000.0,0.00035,2]
[420308565,1775947943812,-2000.0,0.00035,2]
[420308566,1775947943831,-1000.0,0.00035,2]
[420308567,1775947943851,-2000.0,0.00035,2]
[420308568,1775947943875,-2000.0,0.00035,2]
[420308569,1775947943908,-384.0,0.00035,120]